[Event "Titled Tuesday Blitz February 22 Late 2022"]
[White "Vlassov, Nikolai"]
[Black "Noboa Silva, Kevin"]
[WhiteFideId "4103360"]
[BlackFideId "3618471"]
[WhiteElo "2407"]
[BlackElo "2161"]
[Result "1-0"]
[Round "05"]
[TimeControl "180+1"]
[Date "2022.02.23"]
[WhiteClock "0:02:00"]
[BlackClock "0:00:13"]

1. e4 {[%clk 0:03:00]}  e6 {[%clk 0:02:56]} 2. d4 {[%clk 0:03:00]}  d5 {[%clk 0:02:48]} 3. exd5 {[%clk 0:03:01]}  exd5 {[%clk 0:02:49]} 4. Nf3 {[%clk 0:03:01]}  Bd6 {[%clk 0:02:41]} 5. c4 {[%clk 0:03:01]}  Nf6 {[%clk 0:02:38]} 6. c5 {[%clk 0:03:01]}  Be7 {[%clk 0:02:37]} 7. Bd3 {[%clk 0:03:02]}  Bg4 {[%clk 0:02:36]} 8. O-O {[%clk 0:03:01]}  Nc6 {[%clk 0:02:34]} 9. Be3 {[%clk 0:03:00]}  O-O {[%clk 0:02:34]} 10. Bb5 {[%clk 0:02:44]}  Re8 {[%clk 0:02:32]} 11. h3 {[%clk 0:02:43]}  Bxf3 {[%clk 0:02:27]} 12. Qxf3 {[%clk 0:02:43]}  Ne4 {[%clk 0:02:26]} 13. Nc3 {[%clk 0:02:39]}  Bf6 {[%clk 0:02:21]} 14. Rad1 {[%clk 0:02:32]}  a6 {[%clk 0:02:10]} 15. Ba4 {[%clk 0:02:30]}  Nxc3 {[%clk 0:02:04]} 16. bxc3 {[%clk 0:02:29]}  Re4 {[%clk 0:02:04]} 17. Rb1 {[%clk 0:02:24]}  Na5 {[%clk 0:01:57]} 18. Bc2 {[%clk 0:02:19]}  Re7 {[%clk 0:01:54]} 19. Qf5 {[%clk 0:02:17]}  Re6 {[%clk 0:01:26]} 20. Qxh7+ {[%clk 0:02:15]}  Kf8 {[%clk 0:01:23]} 21. Bf5 {[%clk 0:02:14]}  Rc6 {[%clk 0:01:20]} 22. Rfe1 {[%clk 0:02:11]}  Ke7 {[%clk 0:00:13]} 23. Bg5+ {[%clk 0:02:02]}  Re6 {[%clk 0:00:13]} 24. Rxe6+ {[%clk 0:02:01]}  fxe6 {[%clk 0:00:13]} 25. Qxg7+ {[%clk 0:02:01]}  Ke8 {[%clk 0:00:13]} 26. Bg6# {[%clk 0:02:00]} 1-0


[Site "https://www.chess.com"]

[Event "Titled Tuesday Blitz February 22 Late 2022"]
[White "Vusatiuk, Vladimir"]
[Black "Csonka, Balazs"]
[WhiteFideId "14118610"]
[BlackFideId "742910"]
[WhiteElo "2157"]
[BlackElo "2404"]
[Result "0-1"]
[Round "05"]
[TimeControl "180+1"]
[Date "2022.02.23"]
[WhiteClock "0:00:09"]
[BlackClock "0:00:06"]

1. Nf3 {[%clk 0:03:00]}  Nf6 {[%clk 0:02:55]} 2. h4 {[%clk 0:03:01]}  d5 {[%clk 0:02:53]} 3. d3 {[%clk 0:03:01]}  c5 {[%clk 0:02:50]} 4. h5 {[%clk 0:03:01]}  h6 {[%clk 0:02:47]} 5. Nbd2 {[%clk 0:02:42]}  Nc6 {[%clk 0:02:30]} 6. e4 {[%clk 0:02:41]}  Bg4 {[%clk 0:02:30]} 7. Be2 {[%clk 0:02:39]}  e6 {[%clk 0:01:28]} 8. c3 {[%clk 0:02:13]}  Bxh5 {[%clk 0:01:12]} 9. e5 {[%clk 0:01:45]}  Bxf3 {[%clk 0:01:11]} 10. exf6 {[%clk 0:01:24]}  Bxe2 {[%clk 0:01:08]} 11. fxg7 {[%clk 0:01:23]}  Bxg7 {[%clk 0:01:08]} 12. Qxe2 {[%clk 0:01:24]}  Qf6 {[%clk 0:01:05]} 13. Nf3 {[%clk 0:01:21]}  O-O-O {[%clk 0:01:02]} 14. Be3 {[%clk 0:01:13]}  Qe7 {[%clk 0:00:54]} 15. Kf1 {[%clk 0:00:54]}  b6 {[%clk 0:00:43]} 16. a4 {[%clk 0:00:43]}  Kb7 {[%clk 0:00:42]} 17. Qd2 {[%clk 0:00:31]}  e5 {[%clk 0:00:36]} 18. Kg1 {[%clk 0:00:27]}  Qe6 {[%clk 0:00:27]} 19. a5 {[%clk 0:00:26]}  d4 {[%clk 0:00:24]} 20. cxd4 {[%clk 0:00:21]}  cxd4 {[%clk 0:00:24]} 21. axb6 {[%clk 0:00:21]}  axb6 {[%clk 0:00:18]} 22. Rh4 {[%clk 0:00:13]}  dxe3 {[%clk 0:00:18]} 23. Qxe3 {[%clk 0:00:13]}  Ra8 {[%clk 0:00:11]} 24. Rc1 {[%clk 0:00:13]}  Rhc8 {[%clk 0:00:10]} 25. Nd2 {[%clk 0:00:13]}  f5 {[%clk 0:00:09]} 26. Nc4 {[%clk 0:00:12]}  Ra6 {[%clk 0:00:09]} 27. Kh2 {[%clk 0:00:07]}  Qd7 {[%clk 0:00:10]} 28. Ra1 {[%clk 0:00:06]}  f4 {[%clk 0:00:07]} 29. Qc1 {[%clk 0:00:03]}  Rxa1 {[%clk 0:00:06]} 30. Qxa1 {[%clk 0:00:04]}  Nd4 {[%clk 0:00:04]} 31. Qe1 {[%clk 0:00:03]}  Nf5 {[%clk 0:00:02]} 32. Qe4+ {[%clk 0:00:03]}  Rc6 {[%clk 0:00:03]} 33. Rh5 {[%clk 0:00:03]}  Nd6 {[%clk 0:00:02]} 34. Qd5 {[%clk 0:00:02]}  Kc7 {[%clk 0:00:02]} 35. Nxe5 {[%clk 0:00:02]}  Bxe5 {[%clk 0:00:03]} 36. Qxe5 {[%clk 0:00:02]}  Rc5 {[%clk 0:00:03]} 37. d4 {[%clk 0:00:01]}  Rxe5 {[%clk 0:00:03]} 38. dxe5 {[%clk 0:00:02]}  Qe6 {[%clk 0:00:03]} 39. exd6+ {[%clk 0:00:02]}  Qxd6 {[%clk 0:00:04]} 40. Rh4 {[%clk 0:00:03]}  f3+ {[%clk 0:00:04]} 41. g3 {[%clk 0:00:03]}  Qd2 {[%clk 0:00:04]} 42. Rf4 {[%clk 0:00:04]}  Qxf2+ {[%clk 0:00:04]} 43. Kh3 {[%clk 0:00:04]}  Qg2+ {[%clk 0:00:04]} 44. Kg4 {[%clk 0:00:05]}  f2 {[%clk 0:00:05]} 45. Rf7+ {[%clk 0:00:06]}  Kc6 {[%clk 0:00:05]} 46. Rf6+ {[%clk 0:00:07]}  Kb7 {[%clk 0:00:05]} 47. Rf5 {[%clk 0:00:08]}  f1=Q {[%clk 0:00:05]} 48. Rxf1 {[%clk 0:00:09]}  Qxf1 {[%clk 0:00:05]} 49. b4 {[%clk 0:00:10]}  Qc4+ {[%clk 0:00:05]} 50. Kh5 {[%clk 0:00:09]}  Qxb4 {[%clk 0:00:05]} 51. Kxh6 {[%clk 0:00:10]}  Qe4 {[%clk 0:00:06]} 52. g4 {[%clk 0:00:09]}  Qxg4 {[%clk 0:00:06]} 0-1


[Site "https://www.chess.com"]

[Event "Titled Tuesday Blitz February 22 Late 2022"]
[White "Wan, Joseph"]
[Black "Elissalt Cardenas, Hector"]
[WhiteFideId "2069890"]
[BlackFideId "3500632"]
[WhiteElo "2149"]
[BlackElo "2159"]
[Result "1-0"]
[Round "05"]
[TimeControl "180+1"]
[Date "2022.02.23"]
[WhiteClock "0:01:35"]
[BlackClock "0:00:06"]

1. d4 {[%clk 0:03:00]}  d5 {[%clk 0:02:55]} 2. Bf4 {[%clk 0:03:00]}  Nf6 {[%clk 0:02:52]} 3. e3 {[%clk 0:03:01]}  e6 {[%clk 0:02:53]} 4. Nf3 {[%clk 0:03:01]}  b6 {[%clk 0:02:53]} 5. Bd3 {[%clk 0:02:59]}  Bb7 {[%clk 0:02:53]} 6. Nbd2 {[%clk 0:02:56]}  Ne4 {[%clk 0:02:46]} 7. O-O {[%clk 0:02:56]}  Bd6 {[%clk 0:02:14]} 8. Ne5 {[%clk 0:02:53]}  O-O {[%clk 0:02:04]} 9. c3 {[%clk 0:02:51]}  Nd7 {[%clk 0:01:51]} 10. Qc2 {[%clk 0:02:42]}  Bxe5 {[%clk 0:01:44]} 11. dxe5 {[%clk 0:02:38]}  Ndc5 {[%clk 0:01:32]} 12. Nxe4 {[%clk 0:02:35]}  Nxd3 {[%clk 0:01:15]} 13. Nf6+ {[%clk 0:02:30]}  gxf6 {[%clk 0:01:09]} 14. Qxd3 {[%clk 0:02:30]}  fxe5 {[%clk 0:01:09]} 15. Bxe5 {[%clk 0:02:29]}  f6 {[%clk 0:01:02]} 16. Bg3 {[%clk 0:02:29]}  Kh8 {[%clk 0:00:53]} 17. Rad1 {[%clk 0:02:25]}  Qe7 {[%clk 0:00:44]} 18. Qd4 {[%clk 0:02:24]}  Rg8 {[%clk 0:00:36]} 19. Rfe1 {[%clk 0:02:22]}  Raf8 {[%clk 0:00:34]} 20. c4 {[%clk 0:02:18]}  c5 {[%clk 0:00:30]} 21. Qh4 {[%clk 0:02:17]}  Rg6 {[%clk 0:00:26]} 22. f3 {[%clk 0:02:08]}  Rfg8 {[%clk 0:00:20]} 23. Rd2 {[%clk 0:02:09]}  Qg7 {[%clk 0:00:19]} 24. Red1 {[%clk 0:02:05]}  Rh6 {[%clk 0:00:16]} 25. Qf4 {[%clk 0:02:05]}  Rg6 {[%clk 0:00:16]} 26. b3 {[%clk 0:01:59]}  e5 {[%clk 0:00:12]} 27. Qf5 {[%clk 0:01:52]}  d4 {[%clk 0:00:12]} 28. exd4 {[%clk 0:01:47]}  cxd4 {[%clk 0:00:12]} 29. Re1 {[%clk 0:01:43]}  Bxf3 {[%clk 0:00:11]} 30. Qxf3 {[%clk 0:01:38]}  Qh6 {[%clk 0:00:06]} 31. Rde2 {[%clk 0:01:35]} 1-0


[Site "https://www.chess.com"]

[Event "Titled Tuesday Blitz February 22 Late 2022"]
[White "Weetik, Vjacheslav"]
[Black "Avramidou, Anastasia"]
[WhiteFideId "4153472"]
[BlackFideId "4239873"]
[WhiteElo "2469"]
[BlackElo "2183"]
[Result "1/2-1/2"]
[Round "05"]
[TimeControl "180+1"]
[Date "2022.02.23"]
[WhiteClock "0:00:24"]
[BlackClock "0:00:14"]

1. e4 {[%clk 0:02:55]}  e6 {[%clk 0:02:57]} 2. d4 {[%clk 0:02:54]}  d5 {[%clk 0:02:56]} 3. Nd2 {[%clk 0:02:54]}  Be7 {[%clk 0:02:55]} 4. Ngf3 {[%clk 0:02:53]}  Nf6 {[%clk 0:02:54]} 5. e5 {[%clk 0:02:51]}  Nfd7 {[%clk 0:02:54]} 6. Bd3 {[%clk 0:02:48]}  c5 {[%clk 0:02:49]} 7. c3 {[%clk 0:02:49]}  Nc6 {[%clk 0:02:48]} 8. O-O {[%clk 0:02:44]}  f6 {[%clk 0:02:46]} 9. exf6 {[%clk 0:02:34]}  Nxf6 {[%clk 0:02:47]} 10. Re1 {[%clk 0:02:27]}  O-O {[%clk 0:02:42]} 11. Nf1 {[%clk 0:02:27]}  h6 {[%clk 0:02:32]} 12. Ng3 {[%clk 0:02:22]}  Qc7 {[%clk 0:02:27]} 13. a3 {[%clk 0:02:19]}  Bd7 {[%clk 0:02:25]} 14. Bc2 {[%clk 0:02:19]}  Rae8 {[%clk 0:02:22]} 15. b4 {[%clk 0:02:14]}  b6 {[%clk 0:02:17]} 16. Ra2 {[%clk 0:02:11]}  Bd6 {[%clk 0:02:15]} 17. Bb1 {[%clk 0:02:06]}  e5 {[%clk 0:01:51]} 18. b5 {[%clk 0:02:05]}  e4 {[%clk 0:01:39]} 19. bxc6 {[%clk 0:02:05]}  Bg4 {[%clk 0:01:40]} 20. h3 {[%clk 0:01:25]}  Bxg3 {[%clk 0:01:20]} 21. hxg4 {[%clk 0:01:24]}  exf3 {[%clk 0:01:02]} 22. gxf3 {[%clk 0:01:13]}  Bd6 {[%clk 0:00:47]} 23. Bg6 {[%clk 0:01:06]}  Rxe1+ {[%clk 0:00:39]} 24. Qxe1 {[%clk 0:01:07]}  Qxc6 {[%clk 0:00:40]} 25. Qe6+ {[%clk 0:01:00]}  Kh8 {[%clk 0:00:38]} 26. Bf4 {[%clk 0:01:01]}  Rd8 {[%clk 0:00:35]} 27. Re2 {[%clk 0:00:54]}  cxd4 {[%clk 0:00:26]} 28. cxd4 {[%clk 0:00:52]}  Qc7 {[%clk 0:00:09]} 29. Bxd6 {[%clk 0:00:46]}  Qxd6 {[%clk 0:00:09]} 30. Qxd6 {[%clk 0:00:36]}  Rxd6 {[%clk 0:00:10]} 31. Re7 {[%clk 0:00:36]}  Kg8 {[%clk 0:00:07]} 32. Rxa7 {[%clk 0:00:34]}  Kf8 {[%clk 0:00:07]} 33. Rf7+ {[%clk 0:00:32]}  Kg8 {[%clk 0:00:07]} 34. Rb7 {[%clk 0:00:32]}  Kf8 {[%clk 0:00:08]} 35. Kg2 {[%clk 0:00:32]}  Rc6 {[%clk 0:00:08]} 36. Rf7+ {[%clk 0:00:27]}  Kg8 {[%clk 0:00:08]} 37. Rb7 {[%clk 0:00:28]}  Kf8 {[%clk 0:00:08]} 38. a4 {[%clk 0:00:23]}  Rc4 {[%clk 0:00:08]} 39. Rxb6 {[%clk 0:00:22]}  Rxa4 {[%clk 0:00:08]} 40. Rb8+ {[%clk 0:00:22]}  Ke7 {[%clk 0:00:08]} 41. Rb7+ {[%clk 0:00:22]}  Kf8 {[%clk 0:00:09]} 42. f4 {[%clk 0:00:19]}  Rxd4 {[%clk 0:00:08]} 43. g5 {[%clk 0:00:20]}  hxg5 {[%clk 0:00:07]} 44. f5 {[%clk 0:00:15]}  Rg4+ {[%clk 0:00:08]} 45. Kf3 {[%clk 0:00:15]}  Rf4+ {[%clk 0:00:08]} 46. Ke2 {[%clk 0:00:15]}  Re4+ {[%clk 0:00:09]} 47. Kd3 {[%clk 0:00:15]}  Rf4 {[%clk 0:00:05]} 48. Rf7+ {[%clk 0:00:14]}  Kg8 {[%clk 0:00:06]} 49. Ra7 {[%clk 0:00:13]}  Kf8 {[%clk 0:00:05]} 50. Ke2 {[%clk 0:00:13]}  Re4+ {[%clk 0:00:05]} 51. Kf1 {[%clk 0:00:13]}  Rb4 {[%clk 0:00:06]} 52. Kg2 {[%clk 0:00:12]}  g4 {[%clk 0:00:06]} 53. Rf7+ {[%clk 0:00:09]}  Kg8 {[%clk 0:00:06]} 54. Ra7 {[%clk 0:00:10]}  Rb8 {[%clk 0:00:07]} 55. Kg3 {[%clk 0:00:10]}  Rd8 {[%clk 0:00:07]} 56. Bf7+ {[%clk 0:00:04]}  Kf8 {[%clk 0:00:07]} 57. Be6 {[%clk 0:00:05]}  Ne4+ {[%clk 0:00:03]} 58. Kxg4 {[%clk 0:00:02]}  d4 {[%clk 0:00:03]} 59. Rf7+ {[%clk 0:00:01]}  Ke8 {[%clk 0:00:03]} 60. Rxg7 {[%clk 0:00:02]}  d3 {[%clk 0:00:03]} 61. Rg8+ {[%clk 0:00:02]}  Ke7 {[%clk 0:00:03]} 62. Rxd8 {[%clk 0:00:03]}  Kxd8 {[%clk 0:00:04]} 63. Kf3 {[%clk 0:00:04]}  Nc5 {[%clk 0:00:03]} 64. Ke3 {[%clk 0:00:03]}  Ke7 {[%clk 0:00:04]} 65. Bc4 {[%clk 0:00:02]}  Kf6 {[%clk 0:00:04]} 66. Bxd3 {[%clk 0:00:03]}  Nxd3 {[%clk 0:00:03]} 67. Kxd3 {[%clk 0:00:03]}  Kxf5 {[%clk 0:00:04]} 68. Ke3 {[%clk 0:00:04]}  Ke5 {[%clk 0:00:04]} 69. Kf3 {[%clk 0:00:04]}  Kf5 {[%clk 0:00:05]} 70. Ke3 {[%clk 0:00:04]}  Ke5 {[%clk 0:00:05]} 71. Kf3 {[%clk 0:00:05]}  Kf5 {[%clk 0:00:06]} 72. Kg3 {[%clk 0:00:06]}  Kg5 {[%clk 0:00:06]} 73. f3 {[%clk 0:00:06]}  Kf5 {[%clk 0:00:07]} 74. Kf2 {[%clk 0:00:06]}  Kf4 {[%clk 0:00:07]} 75. Ke2 {[%clk 0:00:07]}  Kf5 {[%clk 0:00:07]} 76. Kd3 {[%clk 0:00:07]}  Kf4 {[%clk 0:00:07]} 77. Ke2 {[%clk 0:00:08]}  Kf5 {[%clk 0:00:08]} 78. Ke3 {[%clk 0:00:09]}  Ke5 {[%clk 0:00:08]} 79. f4+ {[%clk 0:00:09]}  Kf5 {[%clk 0:00:09]} 80. Kf3 {[%clk 0:00:10]}  Kf6 {[%clk 0:00:10]} 81. Kg4 {[%clk 0:00:11]}  Kg6 {[%clk 0:00:10]} 82. Kg3 {[%clk 0:00:11]}  Kf5 {[%clk 0:00:09]} 83. Kf3 {[%clk 0:00:12]}  Kf6 {[%clk 0:00:10]} 84. Ke4 {[%clk 0:00:13]}  Ke6 {[%clk 0:00:10]} 85. Kd4 {[%clk 0:00:12]}  Kf5 {[%clk 0:00:10]} 86. Ke3 {[%clk 0:00:13]}  Kf6 {[%clk 0:00:10]} 87. Ke4 {[%clk 0:00:14]}  Ke6 {[%clk 0:00:10]} 88. f5+ {[%clk 0:00:14]}  Kf6 {[%clk 0:00:11]} 89. Kf4 {[%clk 0:00:15]}  Kf7 {[%clk 0:00:11]} 90. Kg5 {[%clk 0:00:16]}  Kg7 {[%clk 0:00:12]} 91. Kg4 {[%clk 0:00:17]}  Kf6 {[%clk 0:00:12]} 92. Kf4 {[%clk 0:00:18]}  Kf7 {[%clk 0:00:12]} 93. Ke5 {[%clk 0:00:19]}  Ke7 {[%clk 0:00:12]} 94. f6+ {[%clk 0:00:19]}  Kf7 {[%clk 0:00:12]} 95. Kf5 {[%clk 0:00:20]}  Kf8 {[%clk 0:00:13]} 96. Kg6 {[%clk 0:00:20]}  Kg8 {[%clk 0:00:13]} 97. Kg5 {[%clk 0:00:21]}  Kf7 {[%clk 0:00:13]} 98. Kf5 {[%clk 0:00:22]}  Kf8 {[%clk 0:00:13]} 99. Ke6 {[%clk 0:00:23]}  Ke8 {[%clk 0:00:13]} 100. f7+ {[%clk 0:00:23]}  Kf8 {[%clk 0:00:14]} 101. Kf6 {[%clk 0:00:24]} 1/2-1/2


[Site "https://www.chess.com"]

[Event "Titled Tuesday Blitz February 22 Late 2022"]
[White "Wu, Christopher"]
[Black "Virtanen, Teemu"]
[WhiteFideId "2040875"]
[BlackFideId "509850"]
[WhiteElo "2638"]
[BlackElo "1926"]
[Result "1-0"]
[Round "05"]
[TimeControl "180+1"]
[Date "2022.02.23"]
[WhiteClock "0:00:03"]
[BlackClock "0:00:03"]

1. d4 {[%clk 0:03:00]}  Nf6 {[%clk 0:02:59]} 2. c4 {[%clk 0:03:00]}  e6 {[%clk 0:02:59]} 3. Nf3 {[%clk 0:03:00]}  b6 {[%clk 0:02:59]} 4. g3 {[%clk 0:03:00]}  Bb7 {[%clk 0:02:57]} 5. Bg2 {[%clk 0:02:59]}  Be7 {[%clk 0:02:58]} 6. O-O {[%clk 0:02:56]}  O-O {[%clk 0:02:58]} 7. Re1 {[%clk 0:02:50]}  d5 {[%clk 0:02:55]} 8. Ne5 {[%clk 0:02:48]}  Nbd7 {[%clk 0:02:48]} 9. Nc3 {[%clk 0:02:42]}  c6 {[%clk 0:02:29]} 10. Bf4 {[%clk 0:02:34]}  Nxe5 {[%clk 0:02:07]} 11. dxe5 {[%clk 0:02:19]}  Nd7 {[%clk 0:02:06]} 12. h4 {[%clk 0:02:07]}  Nc5 {[%clk 0:01:49]} 13. b4 {[%clk 0:01:43]}  d4 {[%clk 0:00:51]} 14. bxc5 {[%clk 0:01:11]}  dxc3 {[%clk 0:00:51]} 15. Qb3 {[%clk 0:01:01]}  Bxc5 {[%clk 0:00:49]} 16. Rad1 {[%clk 0:00:59]}  Qe7 {[%clk 0:00:48]} 17. Bg5 {[%clk 0:00:56]}  f6 {[%clk 0:00:47]} 18. exf6 {[%clk 0:00:54]}  gxf6 {[%clk 0:00:47]} 19. Bh6 {[%clk 0:00:53]}  Rfd8 {[%clk 0:00:46]} 20. Rc1 {[%clk 0:00:31]}  a5 {[%clk 0:00:31]} 21. Red1 {[%clk 0:00:22]}  Bb4 {[%clk 0:00:21]} 22. a3 {[%clk 0:00:20]}  Bxa3 {[%clk 0:00:20]} 23. Rxc3 {[%clk 0:00:20]}  Bc5 {[%clk 0:00:21]} 24. Rcd3 {[%clk 0:00:18]}  Rac8 {[%clk 0:00:14]} 25. Bh3 {[%clk 0:00:13]}  Kf7 {[%clk 0:00:12]} 26. Qc2 {[%clk 0:00:12]}  Rxd3 {[%clk 0:00:09]} 27. Qxd3 {[%clk 0:00:11]}  f5 {[%clk 0:00:07]} 28. Bxf5 {[%clk 0:00:06]}  Qf6 {[%clk 0:00:06]} 29. Qd7+ {[%clk 0:00:04]}  Be7 {[%clk 0:00:06]} 30. Qxb7 {[%clk 0:00:03]}  Rg8 {[%clk 0:00:03]} 31. Bg5 {[%clk 0:00:03]}  Qxf5 {[%clk 0:00:03]} 32. Qxe7+ {[%clk 0:00:02]}  Kg6 {[%clk 0:00:03]} 33. Rd7 {[%clk 0:00:03]} 1-0


[Site "https://www.chess.com"]

[Event "Titled Tuesday Blitz February 22 Late 2022"]
[White "Zakhartsov, Vladimir"]
[Black "Karas, Marek"]
[WhiteFideId "4145097"]
[BlackFideId "14928558"]
[WhiteElo "2432"]
[BlackElo "2270"]
[Result "1-0"]
[Round "05"]
[TimeControl "180+1"]
[Date "2022.02.22"]
[WhiteClock "0:01:00"]
[BlackClock "0:00:48"]

1. e4 {[%clk 0:03:00]}  e6 {[%clk 0:02:59]} 2. d4 {[%clk 0:03:00]}  d5 {[%clk 0:03:00]} 3. Nd2 {[%clk 0:03:01]}  a6 {[%clk 0:02:59]} 4. c3 {[%clk 0:02:58]}  c5 {[%clk 0:03:00]} 5. e5 {[%clk 0:02:58]}  Nc6 {[%clk 0:02:59]} 6. Ndf3 {[%clk 0:02:56]}  b5 {[%clk 0:02:59]} 7. Bd3 {[%clk 0:02:56]}  Qb6 {[%clk 0:02:59]} 8. Ne2 {[%clk 0:02:56]}  Bd7 {[%clk 0:02:46]} 9. O-O {[%clk 0:02:50]}  f6 {[%clk 0:02:35]} 10. Nf4 {[%clk 0:02:39]}  c4 {[%clk 0:02:31]} 11. Bc2 {[%clk 0:02:33]}  O-O-O {[%clk 0:02:31]} 12. b3 {[%clk 0:02:29]}  fxe5 {[%clk 0:02:27]} 13. dxe5 {[%clk 0:02:24]}  Nge7 {[%clk 0:02:16]} 14. Be3 {[%clk 0:02:22]}  Qb7 {[%clk 0:02:15]} 15. a4 {[%clk 0:02:17]}  cxb3 {[%clk 0:02:00]} 16. Bxb3 {[%clk 0:02:16]}  Na5 {[%clk 0:02:01]} 17. axb5 {[%clk 0:02:10]}  Nxb3 {[%clk 0:02:01]} 18. bxa6 {[%clk 0:01:53]}  Qb5 {[%clk 0:01:58]} 19. a7 {[%clk 0:01:52]}  Kb7 {[%clk 0:01:56]} 20. Rb1 {[%clk 0:01:51]}  Ka8 {[%clk 0:01:51]} 21. Rxb3 {[%clk 0:01:50]}  Qc4 {[%clk 0:01:41]} 22. Rb4 {[%clk 0:01:43]}  Qa6 {[%clk 0:01:33]} 23. Rb6 {[%clk 0:01:32]}  Qc4 {[%clk 0:01:29]} 24. Qb1 {[%clk 0:01:21]}  Nc6 {[%clk 0:01:24]} 25. Qb2 {[%clk 0:01:21]}  Bc5 {[%clk 0:01:10]} 26. Nd2 {[%clk 0:01:16]}  Nxe5 {[%clk 0:00:47]} 27. Nxc4 {[%clk 0:01:11]}  Nxc4 {[%clk 0:00:48]} 28. Rb8+ {[%clk 0:01:10]}  Rxb8 {[%clk 0:00:46]} 29. axb8=Q+ {[%clk 0:01:10]}  Rxb8 {[%clk 0:00:46]} 30. Ra1+ {[%clk 0:01:07]}  Ba3 {[%clk 0:00:47]} 31. Rxa3+ {[%clk 0:01:01]}  Nxa3 {[%clk 0:00:47]} 32. Qxa3+ {[%clk 0:01:02]}  Kb7 {[%clk 0:00:48]} 33. h4 {[%clk 0:01:00]} 1-0


[Site "https://www.chess.com"]

[Event "Titled Tuesday Blitz February 22 Late 2022"]
[White "Adury, Anant"]
[Black "Melian, Juan Sebastian"]
[WhiteFideId "30964687"]
[BlackFideId "3706575"]
[WhiteElo "2300"]
[BlackElo "1842"]
[Result "1-0"]
[Round "06"]
[TimeControl "180+1"]
[Date "2022.02.23"]
[WhiteClock "0:00:30"]
[BlackClock "0:00:06"]

1. Nf3 {[%clk 0:03:00]}  d5 {[%clk 0:03:00]} 2. g3 {[%clk 0:02:54]}  c6 {[%clk 0:03:00]} 3. Bg2 {[%clk 0:02:54]}  Nf6 {[%clk 0:02:59]} 4. O-O {[%clk 0:02:55]}  Bf5 {[%clk 0:02:56]} 5. b3 {[%clk 0:02:55]}  Nbd7 {[%clk 0:02:54]} 6. Bb2 {[%clk 0:02:44]}  e6 {[%clk 0:02:53]} 7. Ne5 {[%clk 0:02:44]}  h6 {[%clk 0:02:43]} 8. d3 {[%clk 0:02:43]}  Bh7 {[%clk 0:02:37]} 9. Nd2 {[%clk 0:02:43]}  Bd6 {[%clk 0:02:32]} 10. Nxd7 {[%clk 0:02:43]}  Qxd7 {[%clk 0:02:31]} 11. e4 {[%clk 0:02:44]}  dxe4 {[%clk 0:02:27]} 12. Nxe4 {[%clk 0:02:43]}  Nxe4 {[%clk 0:02:26]} 13. dxe4 {[%clk 0:02:33]}  f6 {[%clk 0:02:02]} 14. e5 {[%clk 0:02:29]}  Bxe5 {[%clk 0:01:58]} 15. Bxe5 {[%clk 0:02:17]}  fxe5 {[%clk 0:01:52]} 16. Qh5+ {[%clk 0:02:14]}  Qf7 {[%clk 0:01:47]} 17. Qxe5 {[%clk 0:02:13]}  O-O {[%clk 0:01:39]} 18. c4 {[%clk 0:02:12]}  Rad8 {[%clk 0:01:37]} 19. Bh3 {[%clk 0:02:11]}  Bf5 {[%clk 0:01:35]} 20. Bxf5 {[%clk 0:02:11]}  Qxf5 {[%clk 0:01:36]} 21. Qxf5 {[%clk 0:02:11]}  exf5 {[%clk 0:01:31]} 22. Rad1 {[%clk 0:02:11]}  Kf7 {[%clk 0:01:31]} 23. f4 {[%clk 0:02:11]}  Rfe8 {[%clk 0:01:30]} 24. Kf2 {[%clk 0:02:11]}  Kf6 {[%clk 0:01:29]} 25. Rfe1 {[%clk 0:01:59]}  g5 {[%clk 0:01:13]} 26. Kf3 {[%clk 0:01:28]}  Rxe1 {[%clk 0:01:01]} 27. Rxd8 {[%clk 0:01:24]}  Rf1+ {[%clk 0:00:49]} 28. Kg2 {[%clk 0:01:22]}  Ra1 {[%clk 0:00:49]} 29. Rd6+ {[%clk 0:01:15]}  Kg7 {[%clk 0:00:47]} 30. Rd2 {[%clk 0:01:15]}  Kg6 {[%clk 0:00:47]} 31. Rd6+ {[%clk 0:01:15]}  Kh5 {[%clk 0:00:46]} 32. Rd2 {[%clk 0:01:13]}  gxf4 {[%clk 0:00:44]} 33. gxf4 {[%clk 0:01:14]}  Kg4 {[%clk 0:00:44]} 34. Rf2 {[%clk 0:01:14]}  Re1 {[%clk 0:00:39]} 35. h3+ {[%clk 0:01:11]}  Kh4 {[%clk 0:00:39]} 36. Rd2 {[%clk 0:01:11]}  Re3 {[%clk 0:00:18]} 37. Rd7 {[%clk 0:01:01]}  Rg3+ {[%clk 0:00:16]} 38. Kf2 {[%clk 0:01:01]}  Rxh3 {[%clk 0:00:17]} 39. Rxb7 {[%clk 0:00:54]}  Rh2+ {[%clk 0:00:16]} 40. Kf3 {[%clk 0:00:55]}  Rxa2 {[%clk 0:00:17]} 41. Rc7 {[%clk 0:00:48]}  Rb2 {[%clk 0:00:17]} 42. Rxc6 {[%clk 0:00:48]}  Rxb3+ {[%clk 0:00:18]} 43. Kf2 {[%clk 0:00:49]}  h5 {[%clk 0:00:17]} 44. Rg6 {[%clk 0:00:48]}  Rc3 {[%clk 0:00:16]} 45. Rg5 {[%clk 0:00:49]}  Rxc4 {[%clk 0:00:14]} 46. Rxf5 {[%clk 0:00:48]}  Kg4 {[%clk 0:00:13]} 47. Rg5+ {[%clk 0:00:48]}  Kh4 {[%clk 0:00:14]} 48. Kf3 {[%clk 0:00:45]}  Rc3+ {[%clk 0:00:12]} 49. Ke4 {[%clk 0:00:44]}  Rc1 {[%clk 0:00:11]} 50. Ra5 {[%clk 0:00:44]}  Re1+ {[%clk 0:00:11]} 51. Kf5 {[%clk 0:00:43]}  Kg3 {[%clk 0:00:09]} 52. Kg5 {[%clk 0:00:41]}  Rf1 {[%clk 0:00:06]} 53. f5 {[%clk 0:00:35]}  h4 {[%clk 0:00:05]} 54. Ra3+ {[%clk 0:00:27]}  Rf3 {[%clk 0:00:04]} 55. Rxf3+ {[%clk 0:00:27]}  Kxf3 {[%clk 0:00:05]} 56. Kxh4 {[%clk 0:00:27]}  a5 {[%clk 0:00:05]} 57. f6 {[%clk 0:00:28]}  a4 {[%clk 0:00:06]} 58. f7 {[%clk 0:00:29]}  a3 {[%clk 0:00:06]} 59. f8=Q+ {[%clk 0:00:30]} 1-0


[Site "https://www.chess.com"]

[Event "Titled Tuesday Blitz February 22 Late 2022"]
[White "Aldokhin, Ivan"]
[Black "Buchenau, Frank"]
[WhiteFideId "24115720"]
[BlackFideId "4604350"]
[WhiteElo "2231"]
[BlackElo "2193"]
[Result "0-1"]
[Round "06"]
[TimeControl "180+1"]
[Date "2022.02.23"]
[WhiteClock "0:02:39"]
[BlackClock "0:02:47"]

1. e4 {[%clk 0:03:00]}  e6 {[%clk 0:02:59]} 2. d4 {[%clk 0:03:00]}  d5 {[%clk 0:03:00]} 3. Nc3 {[%clk 0:03:00]}  Nf6 {[%clk 0:03:00]} 4. e5 {[%clk 0:03:00]}  Nfd7 {[%clk 0:03:00]} 5. f4 {[%clk 0:03:01]}  c5 {[%clk 0:03:00]} 6. Nf3 {[%clk 0:03:02]}  Nc6 {[%clk 0:03:01]} 7. Be3 {[%clk 0:03:01]}  a6 {[%clk 0:03:01]} 8. Qd2 {[%clk 0:02:59]}  b5 {[%clk 0:03:01]} 9. g3 {[%clk 0:02:51]}  Qb6 {[%clk 0:02:56]} 10. Bg2 {[%clk 0:02:51]}  cxd4 {[%clk 0:02:54]} 11. Nxd4 {[%clk 0:02:50]}  Bc5 {[%clk 0:02:48]} 12. Nce2 {[%clk 0:02:48]}  b4 {[%clk 0:02:48]} 13. O-O {[%clk 0:02:47]}  a5 {[%clk 0:02:48]} 14. Nxc6 {[%clk 0:02:39]}  Bxe3+ {[%clk 0:02:47]} 0-1


[Site "https://www.chess.com"]